Cogmind - Beta 16.1 @@@ ROGUE MODE // 2026.02.26 @ 17:20:17 Player: cabin Result: Destroyed by Y-45 Defender with Heavy Assault Rifle Performance ------------- Evolutions (2) 1000 Regions Visited (4) 800 Robots Destroyed (10) 50 Value Destroyed (324) 324 Prototype IDs (2) 40 Alien Tech Used (0) 0 Bonus (0) 0 TOTAL SCORE: 2214 Bonus ------- None Cogmind --------- Core Integrity 0/550 Matter 290/300 Energy 63/100 System Corruption 0% Temperature Cool (9) Movement Core (450) Ox8 Location -8/Materials Parts ------- > --- POWER (2) -------- (None) > --- PROPULSION (4) --- (None) > --- UTILITY (3) ------ Small Storage Unit Large Storage Unit > --- WEAPON (2) ------- (None) > --- INVENTORY (15) --- Weight Redist. System ECM Suite Peak State ------------ > --- POWER ------------ Improved Ion Engine Nuclear Core > --- PROPULSION ------- Light Treads Light Treads > --- UTILITY ---------- Small Storage Unit Large Storage Unit ECM Suite > --- WEAPON ----------- EM Shotgun Medium Laser > --- INVENTORY -------- Light Ion Engine Weight Redist. System ECM Suite EM Pulse Gun Medium Laser [Rating: 13] Favorites ----------- Power Ion Engine Engine Ion Engine Power Core Nuclear Core Propulsion Light Treads Treads Light Treads Utility Small Storage Unit Device ECM Suite Storage Small Storage Unit Weapon Medium Laser Energy Gun Medium Laser Launcher Grenade Launcher Build | -11 -10 -9 -9 -8 ------- Run | Yrd Mat Mat Min Mat Slots Evolved 4 | . . 2 . 2 Power 1 | . . 1 . . Propulsion 2 | . . . . 2 Utility 1 | . . 1 . . Weapon . | . . . . . Parts Attached 14 | 7 2 2 . 3 Power 4 | 2 . 1 . 1 Engine 3 | 2 . 1 . . Core 1 | . . . . 1 Reactor . | . . . . . Propulsion 2 | 2 . . . . Treads 2 | 2 . . . . Leg . | . . . . . Wheel . | . . . . . Hover . | . . . . . Flight . | . . . . . Utility 3 | 1 1 1 . . Device 1 | . 1 . . . Storage 2 | 1 . 1 . . Processor . | . . . . . Hackware . | . . . . . Protection . | . . . . . Artifact . | . . . . . Weapon 5 | 2 1 . . 2 Energy Gun 4 | 2 . . . 2 Energy Cannon . | . . . . . Ballistic Gun . | . . . . . Ballistic Cannon . | . . . . . Launcher 1 | . 1 . . . Special Weapon . | . . . . . Impact Weapon . | . . . . . Slashing Weapon . | . . . . . Piercing Weapon . | . . . . . Special Melee Weapon . | . . . . . Unidentified Prototypes . | . . . . . Parts Lost 12 | . . 2 . 10 Power 4 | . . 1 . 3 Propulsion 2 | . . . . 2 Utility 1 | . . . . 1 Weapon 5 | . . 1 . 4 Highest Loss Streak 6 | . . 1 . 6 To Critical Strikes . | . . . . . Average Backups 3 | . 2 3 3 3 Power . | . 1 1 . . Propulsion . | . . . . . Utility 1 | . . 1 2 2 Weapon 1 | . 1 1 1 1 Tool/Special . | . . . . . Unused Backups 2 | . . . . 2 Power . | . . . . . Propulsion . | . . . . . Utility 2 | . . . . 2 Weapon . | . . . . . Tool/Special . | . . . . . Average Slot Usage (%) 84 | . 89 96 100 63 Engine 14 | . 14 19 22 7 Core 1 | . . . . 4 Treads 19 | . 28 22 22 10 Device 8 | . 3 11 11 8 Storage 18 | . 14 21 22 18 Energy Gun 16 | . 21 15 22 14 Launcher 3 | . 6 6 . . Peak Build Rating 13 | 6 7 10 10 13 Average Rating 8 | 4 6 9 10 9 On Entrance 6 | . 6 7 9 10 Avg Prop Armor Cover (%) . | . . . . . Naked Turns . | . . . . . Heaviest Build 46 | 14 17 44 41 46 Greatest Support 40 | 40 40 40 40 40 Greatest Overweight (x) 11 | 3 . 1 1 11 Average Overweight (x) . | . . . 1 2 Largest Inventory Capacity 15 | 8 8 15 15 15 Average Capacity 12 | 7 8 14 15 15 Most Carried 5 | 2 4 5 3 5 Average Carried 3 | . 2 3 3 3 Final Capacity 15 | 8 8 15 15 15 Final Carried 4 | 2 4 4 3 2 Class Distribution -------------------- 100% | Mutant Dominant Class ---------------- Mutant | -10/Materials Mutant | -9/Materials Mutant | -9/Mines Mutant | -8/Materials Resources | -11 -10 -9 -9 -8 ----------- Run | Yrd Mat Mat Min Mat Matter Collected 365 | 176 55 134 . . Remotely . | . . . . . Salvage Created 377 | . 59 212 . 106 Parts 15 | . 5 8 . 2 Haulers Intercepted . | . . . . . Recyclers Shooed . | . . . . . Parts Field Recycled . | . . . . . Retrieved Matter . | . . . . . Parts Self-Destructed . | . . . . . Prevented . | . . . . . Parts Restored . | . . . . . Kills | -11 -10 -9 -9 -8 ------- Run | Yrd Mat Mat Min Mat Combat Hostiles Destroyed 8 | . 2 4 . 2 Guns 5 | . . 3 . 2 AOE 2 | . 2 . . . Classes Destroyed 4 | . 1 3 . . Worker 1 | . . 1 . . Watcher 1 | . . 1 . . Grunt 6 | . 2 3 . 1 Sentry 2 | . . 1 . 1 Best Kill Streak 2 | . 2 2 . 1 Combat Bots Only 2 | . 2 2 . 1 Max Kills in Single Turn 1 | . 1 1 . 1 Gunslinging . | . . . . . Exploded 1 | . 1 . . . Melee . | . . . . . Uniques/NPCs Destroyed . | . . . . . Combat | -11 -10 -9 -9 -8 -------- Run | Yrd Mat Mat Min Mat Hostile Shots Fired 170 | . 3 38 . 129 Missed 30 | . 2 7 . 21 Hits 140 | . 1 31 . 108 Projectile 140 | . 1 31 . 108 Critical Strikes 4 | . . . . 4 Damage Taken 1863 | . 11 452 . 1400 Core 617 | . . 67 . 550 Absorbed by Shields . | . . . . . Core Remaining (%) 94 | 100 100 . 83 . Volleys Fired 53 | . 2 24 . 27 Largest 2 | . 2 2 . 2 Hottest 90 | . 80 90 . 90 Shots Fired 71 | . 4 36 . 31 Gun 68 | . 2 35 . 31 Cannon . | . . . . . Launcher 3 | . 2 1 . . Special . | . . . . . Kinetic . | . . . . . Thermal 46 | . 2 24 . 20 Explosive 3 | . 2 1 . . Electromagnetic 22 | . . 11 . 11 Robot Hit Streak 7 | . 2 6 . 7 Robot Miss Streak 2 | . 1 1 . 2 Penetration Max . | . . . . . Secondary Targets . | . . . . . Shots Hit Robots 49 | . 3 24 . 22 Core Hits 17 | . 2 8 . 7 Critical Kills . | . . . . . Critical Parts Destroyed . | . . . . . Critical Strikes 7 | . . 4 . 3 Burn 6 | . . 4 . 2 Corrupt 1 | . . . . 1 Melee Attacks . | . . . . . Impact . | . . . . . Slashing . | . . . . . Piercing . | . . . . . Sneak Attacks . | . . . . . Combat Hostiles . | . . . . . Follow-up Attacks . | . . . . . Damage Inflicted 969 | . 130 390 . 449 Guns 661 | . 12 322 . 327 Cannons . | . . . . . Explosions 308 | . 118 68 . 122 Melee . | . . . . . Ramming . | . . . . . Kinetic . | . . . . . Thermal 590 | . 12 252 . 326 Explosive 158 | . 118 40 . . Electromagnetic 221 | . . 98 . 123 Impact . | . . . . . Slashing . | . . . . . Piercing . | . . . . . Highest Corruption . | . . . . . Average Corruption . | . . . . . Corruption Purged . | . . . . . Corruption Blocked . | . . . . . Overload Shots . | . . . . . Overflow Damage . | . . . . . Projectiles . | . . . . . Explosions . | . . . . . Melee . | . . . . . Knockbacks . | . . . . . Impact . | . . . . . Kinetic . | . . . . . Secondary . | . . . . . Self-Inflicted Damage 22 | . . 22 . . Shots 1 | . . 1 . . Rammed . | . . . . . Targets Rammed . | . . . . . Kicked . | . . . . . Crushed . | . . . . . Highest Temperature 348 | . 36 348 . 298 Average Temperature 114 | . 20 118 . 118 Received Heat Transfer 795 | . 6 204 . 585 Siege Activations . | . . . . . Martial Activations . | . . . . . Shielding Activations . | . . . . . Robots Disrupted . | . . . . . Combat Hostiles . | . . . . . Robots Corrupted . | . . . . . Combat Hostiles . | . . . . . Parts Fried . | . . . . . Impact Corruptions . | . . . . . Robots Melted 1 | . . 1 . . Combat Hostiles 1 | . . 1 . . Parts Melted 4 | . . 2 . 2 Heat Transferred 1939 | . 37 1012 . 890 Parts Sabotaged . | . . . . . Parts Stolen . | . . . . . Parts Stripped . | . . . . . Power Chain Reactions 2 | . . 1 . 1 Alert | -11 -10 -9 -9 -8 ------- Run | Yrd Mat Mat Min Mat Maximum Alert Level . | . . . . . Low Security (%) 100 | 100 100 100 100 100 Level 1 . | . . . . . Level 2 . | . . . . . Level 3 . | . . . . . Level 4 . | . . . . . Level 5 . | . . . . . High Security . | . . . . . Max Security . | . . . . . Peak Influence 64 | . 64 52 . 30 Initial 22 | . . 22 . . Average 6 | . 6 10 . 2 Influence Increases 264 | . 64 131 . 69 Destroy 0b10 Robot/C 160 | . 40 80 . 40 Destroy 0b10 Robot/NC 10 | . . 10 . . Destroy Leader 42 | . 10 22 . 10 Successful Hack 5 | . . 5 . . Destroy Structure 32 | . 14 14 . 4 Lose Combat Pursuer 15 | . . . . 15 Influence Decreases 249 | . 10 185 . 54 Entered New Map 32 | . . 32 . . Time Decay 177 | . 10 143 . 24 Lost Part 40 | . . 10 . 30 Squads Dispatched 4 | . 2 1 . 1 Investigation 2 | . 1 1 . . Extermination . | . . . . . Reinforcement 1 | . 1 . . . Assault . | . . . . . Garrison 1 | . . . . 1 Intercept . | . . . . . Searches Triggered . | . . . . . Construction Impeded . | . . . . . Haulers Reinforced . | . . . . . Active Scanning Responses . | . . . . . Cargo Convoy Interrupts . | . . . . . Stealth | -11 -10 -9 -9 -8 --------- Run | Yrd Mat Mat Min Mat Distress Signals 3 | . 1 1 . 1 Communications Jammed . | . . . . . Distress Signals . | . . . . . Times Spotted 28 | . 5 13 . 10 Peak Tracking Total 6 | . 3 4 . 6 Tactical Retreats 5 | . . 2 . 3 ECM-based Alert Blocks 5 | . . 2 . 3 Traps | -11 -10 -9 -9 -8 ------- Run | Yrd Mat Mat Min Mat Traps Triggered 2 | . 1 1 . . Indirectly . | . . . . . Trap Hack Attempts . | . . . . . Triggered . | . . . . . Disarmed . | . . . . . Reprogrammed . | . . . . . Reused . | . . . . . Traps Extracted . | . . . . . Installed . | . . . . . Triggered . | . . . . . Machines | -11 -10 -9 -9 -8 ---------- Run | Yrd Mat Mat Min Mat Machines Disabled . | . . . . . Max in Single Turn . | . . . . . Machines Repaired . | . . . . . Machines Dismantled . | . . . . . Machines Sabotaged . | . . . . . Overloaded Fab Kills . | . . . . . Hacking | -11 -10 -9 -9 -8 --------- Run | Yrd Mat Mat Min Mat Machines Accessed 1 | . . 1 . . Terminals 1 | . . 1 . . Fabricators . | . . . . . Repair Stations . | . . . . . Recycling Units . | . . . . . Scanalyzers . | . . . . . Garrison Access . | . . . . . Total Hacks 5 | . . 5 . . Successful 1 | . . 1 . . Failed 4 | . . 4 . . Catastrophic . | . . . . . Database Lockouts . | . . . . . Manual . | . . . . . Terminals 5 | . . 5 . . Fabricators . | . . . . . Repair Stations . | . . . . . Recycling Units . | . . . . . Scanalyzers . | . . . . . Garrison Access . | . . . . . Terminal Hacks 1 | . . 1 . . Prototype ID Bank 1 | . . 1 . . Fabricator Hacks . | . . . . . Repair Station Hacks . | . . . . . Recycling Unit Hacks . | . . . . . Scanalyzer . | . . . . . Garrison Access Hacks . | . . . . . Unauthorized Hacks . | . . . . . Terminals . | . . . . . Fabricators . | . . . . . Repair Stations . | . . . . . Recycling Units . | . . . . . Scanalyzers . | . . . . . Garrison Access . | . . . . . Data Cores Recovered . | . . . . . Used . | . . . . . Hacking Detections 1 | . . 1 . . Full Trace Events 1 | . . 1 . . Feedback Events . | . . . . . Feedback Blocked . | . . . . . Robot Schematics Acquired . | . . . . . Robots Built . | . . . . . Authchips . | . . . . . Time . | . . . . . Total Robot Build Rating . | . . . . . Part Schematics Acquired . | . . . . . Parts Built . | . . . . . Authchips . | . . . . . Time . | . . . . . Total Part Build Rating . | . . . . . Part Studies Acquired . | . . . . . Parts Repaired . | . . . . . Time . | . . . . . Parts Recycled . | . . . . . Recycled Matter . | . . . . . Retrieved Matter . | . . . . . Retrieved Components . | . . . . . Parts Scanalyzed . | . . . . . Part Schematics Acquired . | . . . . . Parts Damaged . | . . . . . Bothacking | -11 -10 -9 -9 -8 ------------ Run | Yrd Mat Mat Min Mat Used RIF Installer . | . . . . . Robots Hacked . | . . . . . Non-combat . | . . . . . Combat . | . . . . . Robot Hacks Applied . | . . . . . Relay Couplers Released . | . . . . . Fabnet Peak Effective % . | . . . . . Robots Rewired . | . . . . . Allies Hacked . | . . . . . Hacks Repelled . | . . . . . Allies | -11 -10 -9 -9 -8 -------- Run | Yrd Mat Mat Min Mat Total Allies . | . . . . . Largest Group . | . . . . . Highest-Rated Group . | . . . . . Highest-Rated Ally . | . . . . . Total Orders . | . . . . . Ally Attacks . | . . . . . Total Damage . | . . . . . Kills . | . . . . . Allies Corrupted . | . . . . . Allies Melted . | . . . . . Intel | -11 -10 -9 -9 -8 ------- Run | Yrd Mat Mat Min Mat Active Infowar (turns) 849 | . 63 438 31 317 ECM 849 | . 63 438 31 317 Robot Analysis Total . | . . . . . Derelict Logs Recovered . | . . . . . Drone Launches . | . . . . . Drone Recoveries . | . . . . . Exploration | -11 -10 -9 -9 -8 ------------- Run | Yrd Mat Mat Min Mat Turns Passed 1090 | 85 208 438 31 328 Spaces Moved 444 | 48 124 171 12 89 Core 40 | 20 . . . 20 Treads 404 | 28 124 171 12 69 Legs . | . . . . . Wheels . | . . . . . Hover . | . . . . . Flight . | . . . . . Fastest Speed 50 | 50 160 160 240 240 Average Speed 210 | 152 160 217 240 296 Slowest Speed 600 | 200 160 240 240 600 Overloaded Moves . | . . . . . Propulsion Burnouts . | . . . . . Robots Hopped . | . . . . . Potential Cave-ins . | . . . . . Cave-ins Triggered . | . . . . . Exploration Rate (%) 13 | 3 26 21 9 9 Regions Visited 4 Branch Regions 1 Pre-discovered Areas . | . . . . . Known Exits Taken . | . . . . . Unknown Exits Taken 4 | 1 1 1 1 . Scrap Searched . | . . . . . Spaces Dug . | . . . . . Terrain Destroyed 40 | . 20 14 . 6 Melee . | . . . . . Projectile . | . . . . . AOE 40 | . 20 14 . 6 Terrain Rammed . | . . . . . Walls Destroyed . | . . . . . Machines Disabled . | . . . . . Actions | -11 -10 -9 -9 -8 --------- Run | Yrd Mat Mat Min Mat Total 527 | 57 129 201 15 125 Wait 8 | . . 1 3 4 Move 440 | 47 123 170 11 89 Hop . | . . . . . Pick Up 4 | 1 2 1 . . Fast Attach 9 | 6 1 2 . . Attach 7 | 1 . 2 1 3 Detach 2 | 1 . 1 . . Swap 4 | 1 1 . . 2 Drop . | . . . . . Fire 53 | . 2 24 . 27 Melee . | . . . . . Ram . | . . . . . Kick . | . . . . . Crush . | . . . . . Escape Stasis . | . . . . . Rewire . | . . . . . Trap . | . . . . . Miscellaneous . | . . . . . Route ------- -11/Scrapyard -10/Materials -9/Materials -9/Mines -8/Materials (discovered 1 exit: [*Sto]) History --------- Turn | Location | Event 29 | -11/Scrapyard | Discovered new exit (range 16) 86 | -11/Scrapyard | Entered Materials 267 | -10/Materials | Discovered new exit (range 12) 294 | -10/Materials | Entered another Materials area 294 | -9/Materials | Evolved 2 slots: Power x1, Utility x1 309 | -9/Materials | Build established: Mutant 708 | -9/Materials | Discovered new exit (range 8) 732 | -9/Materials | Entered Mines 751 | -9/Mines | Discovered new exit (range 6) 763 | -9/Mines | Entered Materials 763 | -8/Materials | Evolved 2 slots: Propulsion x2 920 | -8/Materials | Discovered new exit (range 14) 1006 | -8/Materials | Lost 6 parts (2p2n2w) 1006 | -8/Materials | Garrison activated, responded to threat 1070 | -8/Materials | Core integrity fell below 50% 1084 | -8/Materials | Core integrity fell below 20% 1091 | -8/Materials | Destroyed by Y-45 Defender with Heavy Assault Rifle Last Messages --------------- 00958_ Imp. Ion Engine destroyed. 00959_ Critical hit (Burn: +37). 00961_ Nuclear Core destroyed. 00965_ EM Shotgun destroyed. 00975_ Lgt. Treads destroyed. 01006_ G-47 Trooper calls for garrison reinforcements. 01006_ ALERT: Activating Garrison Access M001. 01010_ EM Pulse Gun destroyed. 01016_ Lgt. Ion Engine destroyed. 01018_ G-47 Trooper suffers critical hit (Burn). 01018_ Imp. Heat Sink melted. 01018_ G-47 Trooper destroyed. 01027_ K-01 Serf collects debris. 01055_ Med. Laser destroyed. 01058_ K-01 Serf collects debris. 01067_ Critical hit (Burn: +37). 01080_ ECM Suite destroyed. 01081_ W-25 Informer sends out distress signal. 01083_ Critical hit (Burn: +37). Map ----- +----------------------------------------------------+ | ?????????????????????????????????????????? | | ?????????????????????????????????????????? | | ?????????????????????????????????????????? | | ?????????????????????????????????????????? | | ?????????????????????????????????????????? | | ?????????????????????????????????????????? | | ?????????????????????????????????????????? | | ?????????????????????????????????????????? | | ?????????????????????????????????????????? | | ?????????????????????????????????????????? | | ?????????????????????????????????????????? | | ?????????????????????????????????????????? | | ?????????????????????????????????????????? | | ?????????????????????????????????????????? | | ?????????????????????????????????????????? | | ???????????????? #???????????????????????? | | ?????????????????+ ??????????????????????? | | ?????????????????# ?????????????????????? | | ?????????????????# ????????????????????? | | ?????????????????# ????????????????????? | | ?????????????????# #######????????????? | | ?????????????????# # #????????????? | | ?????????????????# #????????????? | | ?????????????????+ < #????????????? | | ?????????????????# #????????????? | | ??????????????????????# @ #????????????? | | ??????????????????????## s ##????????????? | | ???????????????????????# s #####?????????? | | ???????????????????????# s# #?????????? | | ???????????????????????# # #?????????? | | ???????????????????????# # [#?????????? | | ???????????????????????# # #?????????? | | ???????????????????????# # ########### | | ???????????????????????# Y# ## ! # | | ???????????????????????# # ## " # | | ???????????????????????# ##+### "G" # | | ???????????????????????# % # " " # | | ???????????????????????# + # | | ???????????????????????# # """ # | | ???????????????????????# #### # """ # | | ???????????????????????# #??# # """ # | | ???????????????????????# #??# # # | | ???????????????????????# #??# ########## | | ???????????????????????# #??# #????????? | | ???????????????????????# ####+###??????? | | ????????????????######## # #??????? | | ????????????????#! # # #??????? | | ????????????????# !! # # #??????? | | ????????????????#! ! + + = #??????? | | ????????????????# # # #??????? | +----------------------------------------------------+ Best States ------------- Heat Dissipation 31 Energy Generation 21 Energy Capacity 415 Matter Stores 300 Matter Capacity 300 Sight Range 16 Terrain Scan Density 10 ECM Strength 1 Evasion (%) 50 Recoil Reduction 2 Item Schematics ----------------- None Robot Schematics ------------------ None Fabricated ------------ Nothing Repaired ---------- Nothing Studied --------- None Alien Tech Used ----------------- None Achievements -------------- There's More Where That Came From Challenges ------------ None Game ------ Seed TransportWeaponsHumpback Manual? 0 Play Time 00:12:43 Cumulative 20.0 hours Start 2026.02.26 @ 17:08:07 End 2026.02.26 @ 17:20:17 Sessions 1 Manual Loads 0 Difficulty Rogue Special Mode None Game No. 56 Rogue 55 Adventurer 1 Explorer 0 Win Type - Total 0 Types 0/0/0/0/0/0/0/0/0/0 Lore% 7 Gallery% 23 Achievement% 12 Wizard Run 0 Options --------- Layout 2 ASCII 0 Keyboard 1 Movement Numpad Keybinds 0 Fullscreen 1 Font 24/Smallcaps Map View 50x44 Zoom Use 0% Tactical HUD 1 Map Filters NONE Filters NONE Steam 1 RUN: c0df8b33-f0d4-477a-933e-81220cf609df